fUST/lending_fUST_20250603
["ID","MTS","AMOUNT","RATE_DAILY","PERIOD"]
[363908891,1748921439573,-414.43014427,0.0001726,2]
[363908893,1748921439583,-440.0,0.0001726,2]
[363908895,1748921439593,-776.34,0.0001726,2]
[363908897,1748921439602,-440.0,0.0001726,2]
[363908899,1748921439612,-440.0,0.0001726,2]
[363908901,1748921439622,-440.0,0.0001726,2]
[363908903,1748921439631,-440.0,0.0001726,2]
[363908905,1748921439640,-408.53618931,0.0001726,2]
[363908907,1748921439649,-440.0,0.0001726,2]
[363908908,1748921439658,-400.0,0.0001726,2]
[363908909,1748921439667,-440.0,0.0001726,2]
[363908910,1748921439676,-440.0,0.0001726,2]
[363908911,1748921439686,-400.0,0.0001726,2]
[363908913,1748921439695,-400.0,0.0001726,2]
[363908914,1748921439705,-440.0,0.0001726,2]
[363908916,1748921439714,-400.0,0.0001726,2]
[363908918,1748921439724,-400.0,0.0001726,2]
[363908920,1748921439733,-440.0,0.0001726,2]
[363908922,1748921439745,-440.0,0.0001726,2]
[363908924,1748921439754,-408.58803234,0.0001726,2]
[363908926,1748921439764,-365.98323056,0.0001726,2]
[363908928,1748921439774,-497.14944358,0.0001726,2]
[363908930,1748921439783,-440.0,0.0001726,2]
[363908932,1748921439792,-400.0,0.0001726,2]
[363908934,1748921439802,-440.0,0.0001726,2]
[363908936,1748921439811,-400.0,0.0001726,2]
[363908938,1748921439822,-446.66836829,0.0001726,2]
[363908940,1748921439832,-423.38,0.0001726,2]
[363908942,1748921439841,-400.0,0.0001726,2]
[363908944,1748921439851,-400.0,0.0001726,2]
[363908946,1748921439861,-400.0,0.0001726,2]
[363908948,1748921439870,-440.0,0.0001726,2]
[363908950,1748921439879,-440.0,0.0001726,2]
[363908952,1748921439888,-440.0,0.0001726,2]
[363908954,1748921439897,-408.23200574,0.0001726,2]
[363908957,1748921439906,-303.23133789,0.0001726,2]
[363908960,1748921439915,-440.0,0.0001726,2]
[363908963,1748921439924,-178.59671348,0.0001726,2]
[363908965,1748921439934,-400.0,0.0001726,2]
[363908968,1748921439943,-440.0,0.0001726,2]
[363908970,1748921439952,-400.0,0.0001726,2]
[363908973,1748921439962,-440.0,0.0001726,2]
[363908976,1748921439971,-400.0,0.0001726,2]
[363908979,1748921439980,-440.0,0.0001726,2]
[363908982,1748921439990,-440.0,0.0001726,2]
[363908985,1748921439999,-440.41944304,0.0001726,2]
[363908988,1748921440009,-440.0,0.0001726,2]
[363908990,1748921440018,-440.0,0.0001726,2]
[363908993,1748921440027,-264.49016363,0.00017534,2]
[363908996,1748921440037,-972.56,0.00017534,2]
[363908999,1748921440046,-440.0,0.00017534,2]
[363909002,1748921440055,-1112.44,0.00017534,2]
[363909005,1748921440073,-687.98,0.00017534,2]
[363909008,1748921440083,-440.0,0.00017534,2]
[363909011,1748921440093,-440.0,0.00017534,2]
[363909014,1748921440104,-440.0,0.00017534,2]
[363909017,1748921440115,-440.0,0.00017534,2]
[363909020,1748921440125,-440.0,0.00017534,2]
[363909023,1748921440135,-440.0,0.00017534,2]
[363909026,1748921440145,-440.0,0.00017534,2]
[363909029,1748921440155,-440.0,0.00017534,2]
[363909032,1748921440165,-636.01,0.00017534,2]
[363909034,1748921440174,-400.0,0.00017534,2]
[363909037,1748921440183,-440.79,0.00017534,2]
[363909040,1748921440192,-440.0,0.00017534,2]
[363909043,1748921440201,-776.34,0.00017534,2]
[363909046,1748921440211,-440.0,0.00017534,2]
[363909049,1748921440220,-440.0,0.00017534,2]
[363909052,1748921440229,-440.0,0.00017534,2]
[363909054,1748921440238,-390.0,0.00017534,2]
[363909057,1748921440247,-440.0,0.00017534,2]
[363909060,1748921440257,-400.0,0.00017534,2]
[363909063,1748921440266,-400.0,0.00017534,2]
[363909066,1748921440275,-440.0,0.00017534,2]
[363909069,1748921440287,-400.0,0.00017534,2]
[363909072,1748921440296,-245.90933481,0.00017534,2]
[363909076,1748921440309,-154.09066519,0.00017534,2]
[363909078,1748921440319,-400.0,0.00017534,2]
[363909081,1748921440329,-400.0,0.00017534,2]
[363909084,1748921440338,-440.0,0.00017534,2]
[363909087,1748921440347,-141.32898017,0.00017534,2]
[363909090,1748921440359,-248.67101983,0.00017534,2]
[363909093,1748921440368,-152.32898017,0.00017534,2]
[363909096,1748921440381,-287.67101983,0.00017534,2]
[363909097,1748921440390,-312.32898042,0.00017534,2]
[363909100,1748921440401,-127.67101958,0.00017534,2]
[363909102,1748921440411,-390.0,0.00017534,2]
[363909103,1748921440420,-208.85139842,0.00017534,2]
[363909105,1748921440429,-440.0,0.00017534,2]
[363909107,1748921440439,-440.0,0.00017534,2]
[363909109,1748921440448,-440.0,0.00017534,2]
[363909111,1748921440458,-400.0,0.00017534,2]
[363909113,1748921440467,-617.11503155,0.00017729,2]
[363909115,1748921440477,-500.0,0.00017807,2]
[363909117,1748921440487,-972.56,0.00017808,2]
[363909119,1748921440497,-230.00739652,0.00017808,2]
[363909121,1748921440510,-255.48689148,0.00017808,2]
[363909123,1748921440520,-278.08505237,0.00017808,2]
[363909128,1748921440552,-344.28995489,0.00016438,2]
[363909130,1748921440563,-834.35494763,0.00017808,2]
[363909132,1748921440573,-687.98,0.00017808,2]
[363909134,1748921440583,-440.0,0.00017808,2]
[363909136,1748921440593,-440.0,0.00017808,2]
[363909137,1748921440604,-440.0,0.00017808,2]
[363909138,1748921440615,-440.0,0.00017808,2]
[363909139,1748921440625,-440.0,0.00017808,2]
[363909140,1748921440635,-440.0,0.00017808,2]
[363909142,1748921440645,-440.0,0.00017808,2]
[363909144,1748921440654,-232.44061236,0.00017808,2]
[363909222,1748921441085,-430.0,0.00016438,2]
[363909224,1748921441096,-440.0,0.00016438,2]
[363909226,1748921441107,-440.0,0.00016712,2]
[363909228,1748921441116,-440.0,0.00016986,2]
[363909230,1748921441126,-440.0,0.0001726,2]
[363909232,1748921441135,-440.0,0.00017534,2]
[363909234,1748921441144,-207.55938764,0.00017808,2]
[363909236,1748921441154,-636.01,0.00017808,2]
[363909238,1748921441163,-440.79,0.00017808,2]
[363909240,1748921441172,-440.0,0.00017808,2]
[363909242,1748921441181,-776.34,0.00017808,2]
[363909244,1748921441190,-440.0,0.00017808,2]
[363909246,1748921441199,-440.0,0.00017808,2]
[363909248,1748921441208,-440.0,0.00017808,2]
[363909250,1748921441217,-440.0,0.00017808,2]
[363909252,1748921441226,-440.0,0.00017808,2]
[363909254,1748921441237,-440.0,0.00017808,2]
[363909256,1748921441246,-440.0,0.00017808,2]
[363909258,1748921441256,-440.0,0.00017808,2]
[363909260,1748921441264,-440.0,0.00017808,2]
[363909262,1748921441275,-440.0,0.00017808,2]
[363909264,1748921441284,-440.0,0.00017808,2]
[363909266,1748921441293,-440.0,0.00017808,2]
[363909268,1748921441302,-1286.76577161,0.000179,2]
[363909270,1748921441312,-379.0,0.00017961,2]
[363909271,1748921441323,-392.0,0.00017961,2]
[363909273,1748921441332,-420.0,0.00017961,2]
[363909275,1748921441342,-1680.0,0.00018051,2]
[363909277,1748921441353,-1112.44,0.00018082,2]
[363909279,1748921441363,-687.98,0.00018082,2]
[363909281,1748921441372,-440.0,0.00018082,2]
[363909283,1748921441382,-440.0,0.00018082,2]
[363909285,1748921441392,-440.0,0.00018082,2]
[363909287,1748921441402,-440.0,0.00018082,2]
[363909289,1748921441412,-440.0,0.00018082,2]
[363909291,1748921441421,-440.0,0.00018082,2]
[363909293,1748921441431,-440.0,0.00018082,2]
[363909295,1748921441443,-440.0,0.00018082,2]
[363909297,1748921441452,-636.01,0.00018082,2]
[363909299,1748921441461,-440.79,0.00018082,2]
[363909301,1748921441471,-440.0,0.00018082,2]
[363909303,1748921441481,-776.34,0.00018082,2]
[363909305,1748921441490,-440.0,0.00018082,2]
[363909307,1748921441499,-440.0,0.00018082,2]
[363909309,1748921441509,-440.0,0.00018082,2]
[363909311,1748921441518,-440.0,0.00018082,2]
[363909313,1748921441527,-440.0,0.00018082,2]
[363909315,1748921441538,-440.0,0.00018082,2]
[363909317,1748921441547,-440.0,0.00018082,2]
[363909319,1748921441557,-440.0,0.00018082,2]
[363909321,1748921441566,-440.0,0.00018082,2]
[363909323,1748921441576,-440.0,0.00018082,2]
[363909325,1748921441585,-440.0,0.00018082,2]
[363909327,1748921441594,-440.0,0.00018082,2]
[363909329,1748921441604,-1286.76577139,0.00018107,2]
[363909331,1748921441614,-1286.76577139,0.00018314,2]
[363909333,1748921441623,-1112.44,0.00018356,2]
[363909335,1748921441633,-687.98,0.00018356,2]
[363909337,1748921441643,-221.27642455,0.00018356,2]
[363909339,1748921441652,-440.0,0.00018356,2]
[363909341,1748921441662,-440.0,0.00018356,2]
[363909343,1748921441671,-440.0,0.00018356,2]
[363909345,1748921441681,-440.0,0.00018356,2]
[363909347,1748921441690,-440.0,0.00018356,2]
[363909349,1748921441700,-440.0,0.00018356,2]
[363909351,1748921441711,-440.0,0.00018356,2]
[363909353,1748921441720,-636.01,0.00018356,2]
[363909355,1748921441730,-440.79,0.00018356,2]
[363909357,1748921441742,-440.0,0.00018356,2]
[363909359,1748921441752,-776.34,0.00018356,2]
[363909361,1748921441762,-440.0,0.00018356,2]
[363909363,1748921441771,-440.0,0.00018356,2]
[363909365,1748921441781,-440.0,0.00018356,2]
[363909367,1748921441791,-440.0,0.00018356,2]
[363909369,1748921441800,-440.0,0.00018356,2]
[363909371,1748921441810,-440.0,0.00018356,2]
[363909373,1748921441819,-440.0,0.00018356,2]
[363909375,1748921441829,-237.95908231,0.00018356,2]
[363909377,1748921441838,-440.0,0.00018356,2]
[363909379,1748921441847,-440.0,0.00018356,2]
[363909381,1748921441857,-440.0,0.00018356,2]
[363909383,1748921441867,-440.0,0.00018356,2]
[363909385,1748921441876,-500.0,0.00018455,2]
[363909387,1748921441886,-842.5625,0.0001849,2]
[363909389,1748921441895,-229.42821335,0.00018495,2]
[363909391,1748921441905,-160.0,0.00018495,2]
[363909393,1748921441914,-12670.76136593,0.00018495,2]
[363909395,1748921441924,-423.63107087,0.00018495,2]
[363909397,1748921441933,-160.0,0.00018495,2]
[363909399,1748921441942,-1286.76577139,0.00018521,2]
[363909401,1748921441951,-1112.44,0.0001863,2]
[363909403,1748921441960,-687.98,0.0001863,2]
[363909405,1748921441969,-440.0,0.0001863,2]
[363909407,1748921441979,-440.0,0.0001863,2]
[363909409,1748921441988,-440.0,0.0001863,2]
[363909411,1748921441999,-440.0,0.0001863,2]
[363909413,1748921442008,-440.0,0.0001863,2]
[363909415,1748921442017,-526.29981414,0.0001863,2]
[363909416,1748921442026,-440.0,0.0001863,2]
[363909418,1748921442035,-636.01,0.0001863,2]
[363909420,1748921442045,-440.79,0.0001863,2]
[363909422,1748921442054,-440.0,0.0001863,2]
[363909424,1748921442063,-776.34,0.0001863,2]
[363909426,1748921442072,-440.0,0.0001863,2]
[363909428,1748921442082,-440.0,0.0001863,2]
[363909430,1748921442091,-440.0,0.0001863,2]
[363909432,1748921442100,-440.0,0.0001863,2]
[363909434,1748921442109,-440.0,0.0001863,2]
[363909436,1748921442119,-440.0,0.0001863,2]
[363909439,1748921442128,-440.0,0.0001863,2]
[363909440,1748921442138,-440.0,0.0001863,2]
[363909443,1748921442147,-440.0,0.0001863,2]
[363909444,1748921442156,-580.62549287,0.0001863,2]
[363909447,1748921442166,-1286.76577139,0.00018728,2]
[363909449,1748921442175,-1367.73750483,0.000189,2]
[363909451,1748921442184,-1112.44,0.00018904,2]
[363909453,1748921442193,-687.98,0.00018904,2]
[363909455,1748921442203,-440.0,0.00018904,2]
[363909456,1748921442211,-440.0,0.00018904,2]
[363909458,1748921442220,-440.0,0.00018904,2]
[363909461,1748921442230,-510.2,0.00018904,2]
[363909463,1748921442239,-440.0,0.00018904,2]
[363909465,1748921442249,-576.76091102,0.00018904,2]
[363909467,1748921442258,-636.01,0.00018904,2]
[363909469,1748921442268,-440.79,0.00018904,2]
[363909471,1748921442277,-440.0,0.00018904,2]
[363909473,1748921442286,-776.34,0.00018904,2]
[363909475,1748921442295,-440.0,0.00018904,2]
[363909477,1748921442304,-440.0,0.00018904,2]
[363909478,1748921442313,-440.0,0.00018904,2]
[363909480,1748921442323,-440.0,0.00018904,2]
[363909482,1748921442332,-440.0,0.00018904,2]
[363909484,1748921442341,-440.0,0.00018904,2]
[363909487,1748921442351,-440.0,0.00018904,2]
[363909489,1748921442360,-400.0,0.00018904,2]
[363909491,1748921442369,-440.0,0.00018904,2]
[363909493,1748921442378,-1286.76577139,0.00018934,2]
[363909495,1748921442388,-617.11503155,0.00019119,2]
[363909496,1748921442396,-1286.76577139,0.00019141,2]
[363909498,1748921442405,-1112.44,0.00019178,2]
[363909500,1748921442414,-687.98,0.00019178,2]
[363909502,1748921442423,-440.0,0.00019178,2]
[363909504,1748921442432,-440.0,0.00019178,2]
[363909506,1748921442441,-440.0,0.00019178,2]
[363909508,1748921442451,-440.0,0.00019178,2]
[363909510,1748921442460,-636.01,0.00019178,2]
[363909512,1748921442469,-440.79,0.00019178,2]
[363909514,1748921442479,-440.0,0.00019178,2]
[363909516,1748921442488,-776.34,0.00019178,2]
[363909518,1748921442498,-440.0,0.00019178,2]
[363909520,1748921442507,-440.0,0.00019178,2]
[363909522,1748921442517,-440.0,0.00019178,2]
[363909524,1748921442526,-440.0,0.00019178,2]
[363909526,1748921442535,-500.0,0.00019178,2]
[363909528,1748921442546,-440.0,0.00019178,2]
[363909530,1748921442555,-500.0,0.00019178,2]
[363909532,1748921442565,-500.0,0.00019178,2]
[363909534,1748921442574,-440.0,0.00019178,2]
[363909536,1748921442583,-440.0,0.00019178,2]
[363909538,1748921442593,-500.0,0.00019178,2]
[363909540,1748921442603,-500.0,0.00019178,2]
[363909542,1748921442613,-440.0,0.00019178,2]
[363909544,1748921442622,-318.86061749,0.00019178,2]
[363909546,1748921442631,-151.0,0.00019178,2]
[363909548,1748921442640,-193.523419,0.00019178,2]
[363909550,1748921442650,-156.587,0.00019233,2]
[363909553,1748921442659,-162.380719,0.00019288,2]
[363909555,1748921442669,-177.48101547,0.00019343,2]
[363909557,1748921442678,-1286.76577139,0.00019348,2]
[363909559,1748921442688,-1112.44,0.00019452,2]
[363909561,1748921442697,-687.98,0.00019452,2]
[363909563,1748921442707,-203.5,0.00019452,2]
[363909565,1748921442716,-440.0,0.00019452,2]
[363909567,1748921442725,-440.0,0.00019452,2]
[363909568,1748921442735,-151.0,0.00019452,2]
[363909571,1748921442749,-366.9,0.00019452,2]
[363909573,1748921442759,-636.01,0.00019452,2]
[363909575,1748921442769,-440.79,0.00019452,2]
[363909577,1748921442780,-440.0,0.00019452,2]
[363909579,1748921442790,-776.34,0.00019452,2]
[363909581,1748921442800,-440.0,0.00019452,2]
[363909583,1748921442809,-423.01,0.00019452,2]
[363909584,1748921442820,-440.0,0.00019452,2]
[363909586,1748921442829,-440.0,0.00019452,2]
[363909589,1748921442839,-440.0,0.00019452,2]
[363909590,1748921442849,-440.0,0.00019452,2]
[363909593,1748921442859,-440.0,0.00019452,2]
[363909594,1748921442868,-335.71,0.00019452,2]
[363909596,1748921442878,-502.88963686,0.000195,2]
[363909598,1748921442887,-500.0,0.000195,2]
[363909600,1748921442896,-502.76889791,0.000195,2]
[363909602,1748921442905,-1286.76577139,0.00019555,2]
[363909604,1748921442914,-268.84,0.00019619,2]
[363909606,1748921442924,-1112.44,0.00019726,2]
[363909608,1748921442933,-687.98,0.00019726,2]
[363909610,1748921442943,-440.0,0.00019726,2]
[363909612,1748921442953,-440.0,0.00019726,2]
[363909614,1748921442962,-636.01,0.00019726,2]
[363909616,1748921442971,-440.79,0.00019726,2]
[363909619,1748921442981,-440.0,0.00019726,2]
[363909620,1748921442991,-776.34,0.00019726,2]
[363909623,1748921443003,-440.0,0.00019726,2]
[363909624,1748921443012,-440.0,0.00019726,2]
[363909627,1748921443022,-235.22558951,0.00019726,2]
[363909629,1748921443032,-440.0,0.00019726,2]
[363909631,1748921443041,-440.0,0.00019726,2]
[363909632,1748921443051,-440.0,0.00019726,2]
[363909634,1748921443060,-1286.76577139,0.00019762,2]
[363909636,1748921443070,-800.0,0.00019964,2]
[363909638,1748921443079,-1286.76577139,0.00019969,2]
[363909640,1748921443089,-14857.81764852,0.0001999,2]
[363909642,1748921443098,-189.47995318,0.0002,2]
[363909645,1748921443107,-19432.0,0.0002,2]
[363909648,1748921443116,-1112.44,0.0002,2]
[363909650,1748921443126,-151.0,0.0002,2]
[363909652,1748921443136,-687.98,0.0002,2]
[363909654,1748921443145,-151.0,0.0002,2]
[363909657,1748921443154,-440.0,0.0002,2]
[363909660,1748921443164,-440.0,0.0002,2]
[363909663,1748921443173,-636.01,0.0002,2]
[363909666,1748921443182,-440.79,0.0002,2]
[363909668,1748921443192,-440.0,0.0002,2]
[363909670,1748921443201,-776.34,0.0002,2]
[363909672,1748921443210,-440.0,0.0002,2]
[363909674,1748921443219,-32427.64800845,0.0002,2]
[363909676,1748921443228,-364.514434,0.0002,2]
[363909678,1748921443237,-440.0,0.0002,2]
[363909680,1748921443247,-364.514434,0.0002,2]
[363909682,1748921443258,-1000.0383099,0.0002,2]
[363909684,1748921443267,-152.942612,0.0002,2]
[363909686,1748921443276,-440.0,0.0002,2]
[363909688,1748921443285,-244.82598,0.0002,2]
[363909690,1748921443294,-244.82598,0.0002,2]
[363909692,1748921443303,-152.118527,0.0002,2]
[363909694,1748921443312,-397.31064,0.0002,2]
[363909696,1748921443322,-151.0,0.0002,2]
[363909698,1748921443331,-440.0,0.0002,2]
[363909700,1748921443341,-397.31064,0.0002,2]
[363909702,1748921443350,-440.0,0.0002,2]
[363909704,1748921443361,-1000.0,0.00020048,2]
[363909706,1748921443370,-1286.76577139,0.00020176,2]
[363909708,1748921443380,-188.525705,0.00020187,2]
[363909710,1748921443390,-1112.44,0.00020273,2]
[363909712,1748921443400,-687.98,0.00020273,2]
[363909714,1748921443410,-573.11276607,0.00020273,2]
[363909716,1748921443420,-636.01,0.00020273,2]
[363909718,1748921443429,-440.79,0.00020273,2]
[363909720,1748921443439,-440.0,0.00020273,2]
[363909722,1748921443450,-776.34,0.00020273,2]
[363909724,1748921443459,-440.0,0.00020273,2]
[363909726,1748921443468,-440.0,0.00020273,2]
[363909728,1748921443477,-440.0,0.00020273,2]
[363909729,1748921443486,-440.0,0.00020273,2]
[363909731,1748921443496,-440.0,0.00020273,2]
[363909733,1748921443509,-151.0,0.000203,3]
[363909735,1748921443519,-1286.76577139,0.00020383,3]
[363909737,1748921443529,-617.11503155,0.0002051,2]
[363909739,1748921443539,-1112.44,0.00020547,2]
[363909742,1748921443550,-687.98,0.00020547,2]
[363909743,1748921443560,-636.01,0.00020547,2]
[363909756,1748921443570,-440.79,0.00020547,2]
[363909758,1748921443684,-440.0,0.00020547,2]
[363909760,1748921443694,-776.34,0.00020547,2]
[363909762,1748921443703,-440.0,0.00020547,2]
[363909764,1748921443712,-247.11,0.00020547,2]
[363909766,1748921443722,-408.32,0.00020547,2]
[363909768,1748921443732,-440.0,0.00020547,2]
[363909771,1748921443747,-440.0,0.00020547,2]
[363909773,1748921443759,-1286.76577139,0.0002059,3]
[363909775,1748921443769,-1600.0,0.00020596,2]
[363909777,1748921443780,-1286.76577139,0.00020797,4]
[363909779,1748921443790,-160.0,0.0002081,2]
[363909781,1748921443800,-500.0,0.0002081,2]
[363909783,1748921443809,-1112.44,0.00020821,2]
[363909785,1748921443819,-687.98,0.00020821,2]
[363909787,1748921443829,-636.01,0.00020821,2]
[363909789,1748921443838,-440.79,0.00020821,2]
[363909791,1748921443848,-440.0,0.00020821,2]
[363909793,1748921443857,-776.34,0.00020821,2]
[363909795,1748921443867,-440.0,0.00020821,2]
[363909797,1748921443876,-440.0,0.00020821,2]
[363909799,1748921443885,-440.0,0.00020821,2]
[363909801,1748921443895,-151.0,0.000209,4]
[363909803,1748921443905,-159.362955,0.00020928,2]
[363909805,1748921443914,-882.37572583,0.00020931,2]
[363909807,1748921443923,-175.81648314,0.0002094,2]
[363909809,1748921443933,-152.37664978,0.0002094,2]
[363909811,1748921443942,-500.0,0.0002094,2]
[363909813,1748921443951,-500.0,0.0002094,2]
[363909815,1748921443961,-500.0,0.0002094,2]
[363909817,1748921443970,-500.0,0.0002094,2]
[363909819,1748921443980,-207.4,0.0002094,2]
[363909821,1748921443989,-500.0,0.0002094,2]
[363909823,1748921444000,-500.0,0.0002094,2]
[363909825,1748921444009,-500.0,0.0002094,2]
[363909827,1748921444019,-5000.0,0.0002094,2]
[363909829,1748921444029,-500.0,0.0002094,2]
[363909831,1748921444038,-3898.2834867,0.0002094,2]
[363909833,1748921444047,-500.0,0.0002094,2]
[363909835,1748921444056,-500.0,0.0002094,2]
[363909837,1748921444067,-500.0,0.0002094,2]
[363909839,1748921444077,-500.0,0.0002094,2]
[363909841,1748921444086,-500.0,0.0002094,2]
[363909843,1748921444095,-500.0,0.0002094,2]
[363909845,1748921444105,-500.0,0.0002094,2]
[363909847,1748921444114,-261.942965,0.00020941,2]
[363909849,1748921444124,-709.326363,0.00020941,2]
[363909851,1748921444134,-709.326363,0.00020941,2]
[363909853,1748921444144,-556.38,0.00021,2]
[363909855,1748921444154,-189.99207645,0.00021,7]
[363909857,1748921444163,-1286.76577139,0.00021003,4]
[363909859,1748921444174,-800.0,0.0002106,2]
[363909861,1748921444183,-1000.0,0.00021061,5]
[363909863,1748921444193,-1112.44,0.00021095,2]
[363909865,1748921444203,-687.98,0.00021095,2]
[363909867,1748921444212,-636.01,0.00021095,2]
[363909869,1748921444221,-440.79,0.00021095,2]
[363909871,1748921444230,-387.13,0.00021095,2]
[363909873,1748921444240,-776.34,0.00021095,2]
[363909875,1748921444250,-218.64,0.00021095,2]
[363909877,1748921444260,-440.0,0.00021095,2]
[363909879,1748921444270,-440.0,0.00021095,2]
[363909881,1748921444279,-1071.55,0.00021186,2]
[363909883,1748921444288,-541.88572857,0.0002119,2]
[363909885,1748921444298,-1286.76577139,0.0002121,4]
[363909887,1748921444308,-1071.55,0.00021286,2]
[363909889,1748921444317,-151.0,0.00021286,2]
[363909891,1748921444326,-151.0,0.00021286,2]
[363909893,1748921444336,-151.0,0.00021286,2]
[363909895,1748921444345,-151.0,0.00021286,2]
[363909897,1748921444355,-151.0,0.000213,3]
[363909899,1748921444364,-965.62,0.00021356,2]
[363909901,1748921444373,-1112.44,0.00021369,2]
[363909903,1748921444383,-687.98,0.00021369,2]
[363909905,1748921444393,-636.01,0.00021369,2]
[363909907,1748921444402,-440.79,0.00021369,2]
[363909909,1748921444412,-776.34,0.00021369,2]
[363909911,1748921444421,-440.0,0.00021369,2]
[363909913,1748921444431,-440.0,0.00021369,2]
[363909915,1748921444441,-541.88572858,0.00021384,2]
[363909917,1748921444451,-1071.55,0.00021386,2]
[363909919,1748921444459,-1286.76577139,0.00021417,5]
[363909921,1748921444469,-306.745737,0.00021452,2]
[363909923,1748921444479,-159.6652594,0.00021452,2]
[363909925,1748921444488,-158.5442955,0.00021452,2]
[363909927,1748921444498,-153.0,0.00021452,2]
[363909929,1748921444507,-158.5442955,0.00021452,2]
[363909931,1748921444518,-1071.55,0.00021486,2]
[363909933,1748921444527,-5000.0,0.00021488,2]
[363909935,1748921444536,-1071.55,0.00021586,2]
[363909937,1748921444545,-1000.0,0.000216,5]
[363909939,1748921444554,-151.0,0.000216,3]
[363909941,1748921444563,-439.4364531,0.00021609,2]
[363909943,1748921444573,-138094.6127,0.00021619,2]
[363909945,1748921444582,-2227.0,0.0002162,2]
[363909947,1748921444591,-709.0,0.0002162,2]
[363909949,1748921444600,-2475.39,0.00021621,2]
[363909951,1748921444610,-1286.76577139,0.00021624,5]
[363909953,1748921444619,-3915.68499565,0.00021643,3]
[363909955,1748921444627,-1112.44,0.00021643,2]
[363909957,1748921444636,-687.98,0.00021643,2]
[363909959,1748921444645,-636.01,0.00021643,2]
[363909960,1748921444654,-440.79,0.00021643,2]
[363909961,1748921444664,-776.34,0.00021643,2]
[363909962,1748921444674,-493.95,0.00021643,2]
[363909963,1748921444683,-440.0,0.00021643,2]
[363909964,1748921444693,-1071.55,0.00021686,2]
[363909965,1748921444702,-320.293036,0.00021686,2]
[363909966,1748921444711,-320.293036,0.00021686,2]
[363909967,1748921444721,-4000.0,0.00021688,2]
[363909968,1748921444730,-154.564736,0.0002169,2]
[363909969,1748921444740,-57139.47778939,0.000217,2]
[363909970,1748921444758,-41637.61499257,0.000217,2]
[363909971,1748921444767,-8863.9256349,0.000217,2]
[363909972,1748921444777,-883.574086,0.00021748,3]
[363909973,1748921444787,-1071.55,0.00021786,2]
[363909974,1748921444797,-3000.0,0.00021786,2]
[363909975,1748921444806,-1006.0,0.000218,6]
[363909976,1748921444816,-3000.0,0.00021826,2]
[363909977,1748921444827,-1286.76577139,0.00021831,6]
[363909978,1748921444837,-500.0,0.00021839,2]
[363909979,1748921444846,-500.0,0.00021839,2]
[363909980,1748921444855,-402.47296274,0.00021839,2]
[363909981,1748921444865,-500.0,0.00021839,2]
[363909982,1748921444874,-500.0,0.00021839,2]
[363909983,1748921444883,-500.0,0.00021839,2]
[363909985,1748921444892,-500.0,0.00021839,2]
[363909987,1748921444902,-500.0,0.00021839,2]
[363909989,1748921444911,-500.0,0.00021839,2]
[363909991,1748921444920,-500.0,0.00021839,2]
[363909993,1748921444929,-500.0,0.00021839,2]